fUST/lending_fUST_20240409
["ID","MTS","AMOUNT","RATE_DAILY","PERIOD"]
[321932235,1712641840998,-500.0,0.00035616,2]
[321932237,1712641841007,-500.0,0.00035616,2]
[321932240,1712641841018,-696.02,0.00035616,2]
[321932242,1712641841027,-500.0,0.00035616,2]
[321932243,1712641841036,-500.0,0.00035616,2]
[321932245,1712641841045,-500.0,0.00035616,2]
[321932247,1712641841055,-509.55807919,0.00035616,2]
[321932250,1712641841064,-315.31740256,0.00035616,2]
[321932252,1712641841074,-668.94,0.00035616,2]
[321932254,1712641841084,-538.23,0.00035616,2]
[321932256,1712641841095,-500.0,0.00035616,2]
[321932258,1712641841105,-379.38205605,0.00035616,2]
[321932260,1712641841114,-500.0,0.00035616,2]
[321932262,1712641841126,-500.0,0.00035616,2]
[321932264,1712641841135,-500.0,0.00035616,2]
[321932266,1712641841144,-500.24,0.00035616,2]
[321932268,1712641841154,-500.0,0.00035616,2]
[321932270,1712641841163,-502.09778527,0.00035616,2]
[321932272,1712641841172,-500.0,0.00035616,2]
[321932274,1712641841181,-500.0,0.00035616,2]
[321932276,1712641841190,-500.0,0.00035616,2]
[321932278,1712641841199,-500.0,0.00035616,2]
[321932280,1712641841208,-500.0,0.00035616,2]
[321932282,1712641841217,-246.29353404,0.00035616,2]
[321932283,1712641841227,-500.0,0.00035616,2]
[321932285,1712641841236,-500.0,0.00035616,2]
[321932287,1712641841245,-500.0,0.00035616,2]
[321932289,1712641841255,-500.0,0.00035616,2]
[321932291,1712641841264,-552.88419134,0.00035616,2]
[321932293,1712641841275,-500.0,0.00035616,2]
[321932295,1712641841284,-500.0,0.00035616,2]
[321932297,1712641841293,-500.0,0.00035616,2]
[321932299,1712641841303,-500.0,0.00035616,2]
[321932301,1712641841314,-500.0,0.00035616,2]
[321932303,1712641841323,-500.0,0.00035616,2]
[321932305,1712641841332,-929.82,0.00035616,2]
[321932307,1712641841342,-504.76,0.00035616,2]
[321932309,1712641841351,-561.92834565,0.00035616,2]
[321932311,1712641841361,-1639.8,0.00035616,2]
[321932314,1712641841370,-500.0,0.00035616,2]
[321932316,1712641841379,-518.43106141,0.00035616,2]
[321932318,1712641841388,-236.6693551,0.00035616,2]
[321932320,1712641841397,-500.0,0.00035616,2]
[321932322,1712641841406,-500.0,0.00035616,2]
[321932323,1712641841415,-500.0,0.00035616,2]
[321932325,1712641841425,-500.0,0.00035616,2]
[321932327,1712641841434,-500.0,0.00035616,2]
[321932329,1712641841443,-500.0,0.00035616,2]
[321932332,1712641841453,-500.0,0.00035616,2]
[321932334,1712641841462,-10253.64,0.00035616,2]
[321932336,1712641841474,-519.36281964,0.00035616,2]
[321932337,1712641841486,-988.88,0.00035616,2]
[321932339,1712641841496,-500.0,0.00035616,2]
[321932342,1712641841507,-9858.24,0.00035616,2]
[321932343,1712641841517,-583.34,0.00035616,2]
[321932346,1712641841527,-500.0,0.00035616,2]
[321932348,1712641841537,-500.0,0.00035616,2]
[321932355,1712641841598,-3587.03,0.00035616,2]
[321932357,1712641841608,-500.0,0.00035616,2]
[321932359,1712641841617,-500.0,0.00035616,2]
[321932361,1712641841626,-1914.58,0.00035616,2]
[321932363,1712641841635,-500.0,0.00035616,2]
[321932365,1712641841644,-500.0,0.00035616,2]
[321932367,1712641841652,-500.0,0.00035616,2]
[321932369,1712641841661,-2059.77,0.00035616,2]
[321932371,1712641841670,-500.0,0.00035616,2]
[321932373,1712641841679,-500.0,0.00035616,2]
[321932375,1712641841688,-506.30224677,0.00035616,2]
[321932377,1712641841697,-500.0,0.00035616,2]
[321932379,1712641841706,-507.28959149,0.00035616,2]
[321932381,1712641841715,-1308.19,0.00035616,2]
[321932383,1712641841723,-500.0,0.00035616,2]
[321932385,1712641841733,-500.0,0.00035616,2]
[321932387,1712641841742,-500.0,0.00035616,2]
[321932389,1712641841750,-1011.22,0.00035616,2]
[321932390,1712641841759,-500.0,0.00035616,2]
[321932392,1712641841768,-500.0,0.00035616,2]
[321932394,1712641841777,-500.0,0.00035616,2]
[321932396,1712641841787,-723.12,0.00035616,2]
[321932398,1712641841796,-500.0,0.00035616,2]
[321932400,1712641841805,-500.0,0.00035616,2]
[321932402,1712641841815,-3345.62,0.00035616,2]
[321932405,1712641841825,-3050.81,0.00035616,2]
[321932406,1712641841835,-375.89308946,0.00035616,2]
[321932408,1712641841844,-602.86122293,0.00035616,2]
[321932410,1712641841853,-500.0,0.00035616,2]
[321932412,1712641841862,-2265.82,0.00035616,2]
[321932415,1712641841872,-1205.29,0.00035616,2]
[321932416,1712641841881,-4089.98,0.00035616,2]
[321932419,1712641841894,-1539.6,0.00035616,2]
[321932421,1712641841903,-500.0,0.00035616,2]
[321932422,1712641841912,-500.0,0.00035616,2]
[321932424,1712641841921,-2046.15,0.00035616,2]
[321932427,1712641841931,-500.0,0.00035616,2]
[321932429,1712641841940,-835.54,0.00035616,2]
[321932430,1712641841950,-500.0,0.00035616,2]
[321932433,1712641841959,-500.0,0.00035616,2]
[321932435,1712641841968,-501.3297778,0.00035616,2]
[321932437,1712641841977,-505.47537263,0.00035616,2]
[321932438,1712641841986,-500.0,0.00035616,2]
[321932440,1712641841995,-501.70577137,0.00035616,2]
[321932443,1712641842005,-585.40827387,0.00035616,2]
[321932444,1712641842014,-500.0,0.00035616,2]
[321932446,1712641842023,-501.75036658,0.00035616,2]
[321932449,1712641842033,-500.0,0.00035616,2]
[321932451,1712641842043,-500.0,0.00035616,2]
[321932453,1712641842052,-4720.72,0.00035616,2]
[321932455,1712641842061,-500.0,0.00035616,2]
[321932457,1712641842071,-470.73586514,0.00035616,2]
[321932459,1712641842080,-500.0,0.00035616,2]
[321932461,1712641842089,-500.0,0.00035616,2]
[321932462,1712641842098,-500.0,0.00035616,2]
[321932464,1712641842107,-2853.41,0.00035616,2]
[321932466,1712641842116,-521.37489338,0.00035616,2]
[321932468,1712641842125,-501.21886321,0.00035616,2]
[321932470,1712641842136,-500.0,0.00035616,2]
[321932472,1712641842145,-446.74205314,0.00035616,2]
[321932474,1712641842154,-500.0,0.00035616,2]
[321932477,1712641842163,-500.0,0.00035616,2]
[321932479,1712641842173,-1253.35,0.00035616,2]
[321932480,1712641842182,-785.0,0.00035616,2]
[321932483,1712641842192,-500.0,0.00035616,2]
[321932485,1712641842202,-500.0,0.00035616,2]
[321932487,1712641842211,-704.16,0.00035616,2]
[321932489,1712641842221,-607.98591189,0.00035616,2]
[321932491,1712641842230,-1203.44,0.00035616,2]
[321932493,1712641842240,-5045.57,0.00035616,2]
[321932495,1712641842249,-30321.11,0.00035616,2]
[321932496,1712641842259,-500.0,0.00035616,2]
[321932498,1712641842270,-500.0,0.00035616,2]
[321932501,1712641842281,-500.0,0.00035616,2]
[321932503,1712641842290,-500.0,0.00035616,2]
[321932505,1712641842300,-28868.58,0.00035616,2]
[321932507,1712641842309,-500.0,0.00035616,2]
[321932509,1712641842318,-519.27775112,0.00035616,2]
[321932511,1712641842327,-500.0,0.00035616,2]
[321932513,1712641842336,-500.0,0.00035616,2]
[321932514,1712641842347,-500.0,0.00035616,2]
[321932516,1712641842356,-500.53652385,0.00035616,2]
[321932518,1712641842366,-500.0,0.00035616,2]
[321932520,1712641842374,-500.0,0.00035616,2]
[321932522,1712641842384,-300.0,0.00035616,2]
[321932524,1712641842393,-500.0,0.00035616,2]
[321932526,1712641842402,-500.0,0.00035616,2]
[321932529,1712641842411,-2606.94,0.00035616,2]
[321932531,1712641842420,-500.0,0.00035616,2]
[321932533,1712641842429,-2525.28,0.00035616,2]
[321932535,1712641842438,-500.0,0.00035616,2]
[321932537,1712641842448,-502.49000273,0.00035616,2]
[321932539,1712641842457,-500.0,0.00035616,2]
[321932541,1712641842466,-500.0,0.00035616,2]
[321932549,1712641842526,-7250.47,0.00035616,2]
[321932551,1712641842536,-772.08,0.00035616,2]
[321932553,1712641842545,-501.50341539,0.00035616,2]
[321932555,1712641842555,-500.0,0.00035616,2]
[321932557,1712641842565,-500.0,0.00035616,2]
[321932559,1712641842574,-500.0,0.00035616,2]
[321932562,1712641842584,-500.0,0.00035616,2]
[321932564,1712641842594,-500.0,0.00035616,2]
[321932566,1712641842603,-11176.1,0.00035616,2]
[321932568,1712641842612,-500.0,0.00035616,2]
[321932570,1712641842622,-823.47,0.00035616,2]
[321932572,1712641842631,-500.0,0.00035616,2]
[321932574,1712641842642,-500.0,0.00035616,2]
[321932576,1712641842652,-1000.0,0.00035616,2]
[321932578,1712641842662,-507.76012777,0.00035616,2]
[321932580,1712641842672,-503.25971463,0.00035616,2]
[321932582,1712641842681,-3008.23024629,0.00035616,2]
[321932585,1712641842701,-777.63975371,0.00035616,2]
[321932587,1712641842710,-500.0,0.00035616,2]
[321932589,1712641842719,-500.0,0.00035616,2]
[321932591,1712641842728,-500.0,0.00035616,2]
[321932593,1712641842737,-500.0,0.00035616,2]
[321932595,1712641842747,-500.0,0.00035616,2]
[321932597,1712641842756,-578.42139183,0.00035616,2]
[321932599,1712641842765,-1972.86,0.00035616,2]
[321932601,1712641842774,-500.0,0.00035616,2]
[321932603,1712641842783,-744.73,0.00035616,2]
[321932605,1712641842793,-1168.96,0.00035616,2]
[321932607,1712641842802,-500.0,0.00035616,2]
[321932609,1712641842811,-871.31,0.00035616,2]
[321932611,1712641842820,-500.0,0.00035616,2]
[321932613,1712641842829,-500.0,0.00035616,2]
[321932615,1712641842838,-500.0,0.00035616,2]
[321932617,1712641842848,-2530.94,0.00035616,2]
[321932619,1712641842857,-500.0,0.00035616,2]
[321932621,1712641842866,-74.65121609,0.00035876,2]
[321932638,1712641843015,-2849.91680945,0.00033819,4]
[321932640,1712641843025,-1077.34878391,0.00035876,2]
[321932642,1712641843035,-488.56356,0.00035888,4]
[321932644,1712641843047,-92.93850387,0.00035888,4]
[321932646,1712641843056,-269.25227009,0.00035888,4]
[321932648,1712641843066,-500.0,0.0003589,5]
[321932650,1712641843075,-500.0,0.0003589,5]
[321932652,1712641843084,-500.0,0.0003589,5]
[321932654,1712641843094,-500.0,0.0003589,5]
[321932656,1712641843104,-500.0,0.0003589,5]
[321932658,1712641843113,-500.0,0.0003589,5]
[321932660,1712641843122,-500.0,0.0003589,5]
[321932662,1712641843131,-506.44836463,0.0003589,5]
[321932664,1712641843141,-500.0,0.0003589,5]
[321932666,1712641843150,-500.0,0.0003589,5]
[321932668,1712641843159,-633.56130568,0.0003589,5]
[321932670,1712641843169,-500.0,0.0003589,5]
[321932672,1712641843178,-598.29,0.0003589,5]
[321932674,1712641843188,-500.0,0.0003589,5]
[321932676,1712641843197,-509.42045847,0.0003589,5]
[321932678,1712641843207,-237.49521346,0.0003589,5]
[321932680,1712641843217,-500.0,0.0003589,5]
[321932682,1712641843229,-500.0,0.0003589,5]
[321932684,1712641843240,-500.0,0.0003589,5]
[321932686,1712641843250,-500.0,0.0003589,5]
[321932688,1712641843259,-500.0,0.0003589,5]
[321932690,1712641843269,-500.0,0.0003589,5]
[321932692,1712641843278,-500.0,0.0003589,5]
[321932694,1712641843289,-1448.95,0.0003589,5]
[321932696,1712641843298,-500.0,0.0003589,5]
[321932698,1712641843307,-393.99154156,0.0003589,5]
[321932700,1712641843316,-284.0518061,0.0003589,5]
[321932702,1712641843326,-500.0,0.0003589,5]
[321932704,1712641843335,-1121.43,0.0003589,5]
[321932706,1712641843345,-500.0,0.0003589,5]
[321932708,1712641843355,-2605.4,0.0003589,5]
[321932710,1712641843364,-974.72,0.0003589,5]
[321932718,1712641843425,-364.45889096,0.0003589,5]
[321932787,1712641844086,-452.17901431,0.00033516,2]
[321932789,1712641844103,-4370.54,0.00035616,2]
[321932790,1712641844121,-500.0,0.00035616,2]
[321932791,1712641844137,-500.0,0.00035616,2]
[321932792,1712641844153,-135.54110904,0.0003589,5]
[321932793,1712641844170,-500.0,0.0003589,5]
[321932794,1712641844187,-500.0,0.0003589,5]
[321932795,1712641844203,-1072.57,0.0003589,5]
[321932796,1712641844222,-801.64,0.0003589,5]
[321932797,1712641844241,-500.0,0.0003589,5]
[321932798,1712641844253,-500.0,0.0003589,5]
[321932799,1712641844269,-500.0,0.0003589,5]
[321932800,1712641844284,-500.0,0.0003589,5]
[321932801,1712641844296,-2607.24,0.0003589,5]
[321932802,1712641844310,-500.0,0.0003589,5]
[321932803,1712641844324,-500.0,0.0003589,14]
[321932804,1712641844338,-1000.0,0.0003589,7]
[321932806,1712641844354,-500.0,0.0003589,5]
[321932809,1712641844367,-500.0,0.0003589,5]
[321932811,1712641844381,-802.94,0.0003589,5]
[321932814,1712641844395,-501.77278507,0.0003589,5]
[321932816,1712641844409,-500.0,0.0003589,5]
[321932819,1712641844423,-500.0,0.0003589,5]
[321932821,1712641844437,-500.0,0.0003589,5]
[321932824,1712641844452,-500.0,0.0003589,5]
[321932826,1712641844468,-522.62,0.0003589,5]
[321932829,1712641844483,-500.0,0.0003589,5]
[321932831,1712641844496,-500.0,0.0003589,5]
[321932833,1712641844511,-961.84,0.0003589,5]
[321932836,1712641844525,-500.0,0.0003589,5]
[321932838,1712641844540,-88.4481162,0.0003589,5]
[321933016,1712641846124,-1000.0,0.00035616,7]
[321933018,1712641846133,-1075.83,0.00035616,2]
[321933020,1712641846143,-933.8918838,0.0003589,5]
[321933022,1712641846153,-500.0,0.0003589,5]
[321933024,1712641846162,-262.44829625,0.0003589,5]
[321933026,1712641846172,-4159.71,0.0003589,5]
[321933028,1712641846181,-500.0,0.0003589,5]
[321933030,1712641846190,-500.0,0.0003589,5]
[321933032,1712641846199,-500.0,0.0003589,5]
[321933034,1712641846208,-500.0,0.0003589,5]
[321933036,1712641846218,-542.61,0.0003589,5]
[321933038,1712641846229,-500.0,0.0003589,5]
[321933040,1712641846238,-1067.76,0.0003589,5]
[321933041,1712641846248,-500.0,0.0003589,5]
[321933043,1712641846258,-500.0,0.0003589,5]
[321933045,1712641846267,-500.0,0.0003589,5]
[321933047,1712641846277,-500.0,0.0003589,5]
[321933050,1712641846288,-480.50838361,0.0003589,5]
[321933052,1712641846297,-500.0,0.0003589,5]
[321933053,1712641846307,-500.0,0.0003589,5]
[321933055,1712641846316,-500.0,0.0003589,5]
[321933058,1712641846326,-474.96575416,0.0003589,5]
[321933059,1712641846335,-625.77,0.0003589,5]
[321933062,1712641846346,-1276.07,0.0003589,5]
[321933064,1712641846356,-500.0,0.0003589,5]
[321933065,1712641846364,-500.0,0.0003589,5]
[321933067,1712641846373,-500.0,0.0003589,5]
[321933069,1712641846383,-154.10916917,0.0003589,5]
[321933072,1712641846393,-2967.98,0.0003589,5]
[321933073,1712641846403,-709.92,0.0003589,5]
[321933075,1712641846413,-500.0,0.0003589,5]
[321933078,1712641846424,-500.0,0.0003589,5]
[321933080,1712641846434,-321.94148101,0.0003589,5]
[321934854,1712642714990,5000.0,0.000262,7]
[321934856,1712642825165,-154.98450155,0.00024095,2]
[321934857,1712642825186,-523.35964541,0.00024095,2]
[321934858,1712642829105,-154.98450155,0.00024094,2]
[321934859,1712642829126,-1087.22335945,0.00024094,2]
[321934860,1712642829146,-39.43253658,0.00024095,2]
[321934861,1712642829169,-154.98450155,0.00024095,2]
[321934862,1712642829189,-868.54910044,0.00024096,2]
[321934863,1712642829209,-154.98450155,0.00024096,2]
[321934864,1712642829228,-240.67684413,0.00024096,2]
[321934865,1712642829248,-2764.87754133,0.00024097,2]
[321934866,1712642829268,-300.0,0.00024097,2]
[321934867,1712642829288,-300.0,0.00024097,2]
[321934868,1712642829308,-5084.83060541,0.00024098,2]
[321934869,1712642847091,-154.98450155,0.00024097,2]
[321934870,1712642847112,-389.97372794,0.00024098,2]
[321934871,1712642847132,-684.20160124,0.000241,2]
[321934872,1712642847151,-52.10839526,0.00025211,2]
[321934874,1712642959088,-400.83883555,0.0002521,2]
[321934875,1712642960284,-72.39785015,0.0002521,2]
[321934876,1712642960305,-82.59148559,0.00025211,2]
[321934932,1712643032417,-151.0,0.00025,2]
[321934934,1712643032426,-154.98450155,0.0002521,2]
[321934936,1712643032436,-123.54636947,0.00025211,2]
[321934938,1712643032445,-380.0,0.00026453,2]
[321934939,1712643032454,-864.050884,0.00026459,2]
[321934941,1712643032463,-154.98450155,0.00027,2]
[321934943,1712643032473,-157.720323,0.00027397,2]
[321934944,1712643032482,-165.559223,0.00027397,2]
[321934945,1712643032491,-69.6821886,0.00027467,2]
[321934946,1712643032504,-180.3178114,0.00027467,2]
[321934947,1712643032513,-300.0,0.00027499,2]
[321934949,1712643032523,-300.0,0.00027499,2]
[321934951,1712643032532,-9817.47643219,0.000275,2]
[321934952,1712643032541,-500.0,0.00027676,2]
[321934954,1712643032551,-500.0,0.00027676,2]
[321934956,1712643032561,-500.0,0.00027676,2]
[321934958,1712643032570,-504.08068112,0.00027676,2]
[321934960,1712643032580,-500.0,0.00027676,2]
[321934962,1712643032589,-500.0,0.00027676,2]
[321934965,1712643032598,-500.0,0.00027676,2]
[321934967,1712643032608,-500.0,0.00027676,2]
[321934969,1712643032618,-500.0,0.00027676,2]
[321934970,1712643032627,-300.0,0.00027676,2]
[321934972,1712643032636,-500.0,0.00027676,2]
[321934975,1712643032645,-381.51373376,0.00027676,2]
[321934976,1712643032656,-500.0,0.00027676,2]
[321934978,1712643032665,-500.0,0.00027676,2]
[321934980,1712643032675,-500.0,0.00027676,2]
[321934982,1712643032684,-24900.0,0.00027677,2]
[321934984,1712643032693,-620.0066099,0.00027955,2]
[321934986,1712643032703,-684.20160124,0.000291,2]
[321934988,1712643032712,-420.0,0.00029714,2]
[321934990,1712643032722,-420.0,0.00030249,2]
[321934992,1712643032730,-178.169643,0.00030625,2]
[321934994,1712643032739,-154.98450155,0.00031399,4]
[321934996,1712643032748,-421.27305296,0.000314,2]
[321934997,1712643032758,-587.0,0.00032108,2]
[321934998,1712643032767,-1240.59590766,0.00032301,4]
[321934999,1712643032776,-587.0,0.00033274,2]
[321935000,1712643032785,-684.20160124,0.000341,2]
[321935001,1712643032795,-157.720323,0.00034247,2]
[321935002,1712643032803,-308.3478225,0.00034471,2]
[321935003,1712643032814,-335.0,0.00034694,2]
[321935004,1712643032824,-621.79107698,0.00034895,2]
[321935005,1712643032837,-164.66079012,0.000349,38]
[321935006,1712643032846,-1157.00516554,0.00035,120]
[321935007,1712643032855,-6335.72753851,0.00035,7]
[321935008,1712643032864,-372.10952413,0.00035,120]
[321935009,1712643032873,-9137.25419661,0.00035,4]
[321935010,1712643032882,-153.0,0.00035397,2]
[321935011,1712643032891,-2000.0,0.00035516,2]
[321935012,1712643032901,-1327.05632259,0.00035516,2]
[321935013,1712643032910,-154.98450155,0.00035614,4]
[321935014,1712643032919,-154.98450155,0.00035614,4]
[321935015,1712643032928,-154.98450155,0.00035614,4]
[321935016,1712643032937,-155.31191086,0.00035614,4]
[321935017,1712643032946,-631.45846839,0.00035614,4]
[321935018,1712643032955,-1561.83528297,0.00035614,4]
[321935019,1712643032964,-240.61118676,0.00035614,4]
[321935020,1712643032973,-2706.47406429,0.00035614,120]
[321935021,1712643032982,-240.35534432,0.00035614,4]
[321935022,1712643032991,-154.98450155,0.00035614,4]
[321935023,1712643033000,-491.09259353,0.00035614,4]
[321935024,1712643033072,-447.60281197,0.00035614,4]
[321935025,1712643033082,-365.20859837,0.00035614,4]
[321935026,1712643033091,-635.67928553,0.00035614,4]
[321935027,1712643033100,-712.91814825,0.00035614,4]
[321935028,1712643033109,-394.24656469,0.00035614,4]
[321935029,1712643033118,-2377.71327462,0.00035615,4]
[321935030,1712643033127,-5883.33710272,0.00035616,3]
[321935146,1712643038195,-154.98450155,0.00025211,2]
[321935149,1712643038206,-500.0,0.00035613,7]
[321935152,1712643038215,-228.04797225,0.00035613,7]
[321935155,1712643038225,-500.0,0.00035613,7]
[321935158,1712643038234,-500.0,0.00035613,7]
[321935161,1712643038244,-482.32533251,0.00035613,7]
[321935163,1712643038253,-458.84239019,0.00035613,7]
[321935165,1712643038262,-272.71862515,0.00035613,7]
[321935167,1712643038272,-126276.37167948,0.00035616,3]
[321935169,1712643038281,-500.0,0.00035616,2]
[321935171,1712643038290,-500.0,0.00035616,2]
[321935172,1712643038299,-500.0,0.00035616,2]
[321935174,1712643038308,-534.75351248,0.00035616,2]
[321935176,1712643038319,-309.9411606,0.00035616,2]
[321935179,1712643038330,-500.0,0.00035616,2]
[321935187,1712643038402,-321.83971238,0.00035616,2]
[321935189,1712643038412,-500.0,0.00035616,2]
[321935191,1712643038421,-287.66369961,0.00035616,2]
[321935193,1712643038431,-500.0,0.00035616,2]
[321935195,1712643038440,-500.0,0.00035616,2]
[321935197,1712643038450,-500.0,0.00035616,2]
[321935199,1712643038459,-500.0,0.00035616,2]
[321935201,1712643038468,-500.0,0.00035616,2]
[321935203,1712643038477,-500.0,0.00035616,2]
[321935205,1712643038486,-500.0,0.00035616,2]
[321935207,1712643038495,-500.0,0.00035616,2]
[321935209,1712643038505,-500.0,0.00035616,2]
[321935211,1712643038514,-243.30155645,0.00035616,2]
[321935213,1712643038523,-337.86711139,0.00035616,2]
[321935215,1712643038533,-500.0,0.00035616,2]
[321935217,1712643038543,-500.0,0.00035616,2]
[321935219,1712643038552,-500.0,0.00035616,2]
[321935221,1712643038562,-500.0,0.00035616,2]
[321935223,1712643038571,-500.0,0.00035616,2]
[321935225,1712643038580,-500.0,0.00035616,2]
[321935227,1712643038590,-500.0,0.00035616,2]
[321935229,1712643038598,-500.0,0.00035616,2]
[321935231,1712643038607,-500.0,0.00035616,2]
[321935233,1712643038617,-2353.91,0.00035616,2]
[321935235,1712643038627,-450.95174669,0.00035616,2]
[321935237,1712643038636,-500.0,0.00035616,2]
[321935239,1712643038645,-164.8734558,0.00035616,2]
[321935241,1712643038654,-502.62062407,0.00035616,2]
[321935243,1712643038664,-500.0,0.00035616,2]
[321935245,1712643038673,-500.0,0.00035616,2]
[321935247,1712643038682,-500.0,0.00035616,2]
[321935249,1712643038691,-500.0,0.00035616,2]
[321935251,1712643038700,-1064.91,0.00035616,2]
[321935253,1712643038709,-500.0,0.00035616,2]
[321935255,1712643038718,-681.62,0.00035616,2]
[321935257,1712643038728,-2610.12,0.00035616,2]
[321935259,1712643038736,-500.0,0.00035616,2]
[321935261,1712643038745,-308.57438522,0.00035616,2]
[321935263,1712643038759,-500.0,0.00035616,2]
[321935265,1712643038768,-523.45987027,0.00035616,2]
[321935267,1712643038777,-859.61,0.00035616,2]
[321935269,1712643038786,-500.0,0.00035616,2]
[321935271,1712643038796,-1029.82,0.00035616,2]
[321935273,1712643038806,-500.0,0.00035616,2]
[321935275,1712643038818,-500.0,0.00035616,2]
[321935277,1712643038831,-500.0,0.00035616,2]
[321935280,1712643038842,-500.0,0.00035616,2]
[321935282,1712643038852,-500.0,0.00035616,2]
[321935284,1712643038862,-500.0,0.00035616,2]
[321935285,1712643038874,-500.0,0.00035616,2]
[321935287,1712643038883,-500.0,0.00035616,2]
[321935289,1712643038893,-500.0,0.00035616,2]
[321935292,1712643038904,-539.21,0.00035616,2]
[321935293,1712643038914,-2627.0,0.00035616,2]
[321935295,1712643038924,-500.0,0.00035616,2]
[321935297,1712643038933,-670.15,0.00035616,2]
[321935299,1712643038942,-500.0,0.00035616,2]
[321935301,1712643038951,-500.0,0.00035616,2]
[321935303,1712643038961,-500.0,0.00035616,2]
[321935305,1712643038970,-500.93752798,0.00035616,2]
[321935307,1712643038979,-500.0,0.00035616,2]
[321935309,1712643038988,-500.0,0.00035616,2]
[321935311,1712643038998,-522.97,0.00035616,2]
[321935313,1712643039008,-561.92834565,0.00035616,2]
[321935315,1712643039017,-500.0,0.00035616,2]
[321935317,1712643039027,-786.87,0.00035616,2]
[321935319,1712643039038,-500.0,0.00035616,2]
[321935321,1712643039047,-500.0,0.00035616,2]
[321935323,1712643039056,-500.0,0.00035616,14]
[321935325,1712643039068,-500.0,0.00035616,2]
[321935327,1712643039077,-500.0,0.00035616,2]
[321935329,1712643039086,-500.0,0.00035616,2]
[321935331,1712643039095,-500.0,0.00035616,2]
[321935333,1712643039104,-500.0,0.00035616,2]
[321935335,1712643039113,-500.0,0.00035616,2]
[321935337,1712643039123,-321.69068777,0.00035616,7]
[321935339,1712643039132,-559.04,0.00035616,2]
[321935341,1712643039141,-500.0,0.00035616,2]
[321935343,1712643039151,-500.0,0.00035616,2]
[321935345,1712643039160,-500.0,0.00035616,2]
[321935347,1712643039169,-500.0,0.00035616,2]
[321935349,1712643039178,-500.0,0.00035616,2]
[321935351,1712643039188,-500.0,0.00035616,2]
[321935353,1712643039197,-804.68,0.00035616,2]
[321935355,1712643039206,-500.0,0.00035616,2]
[321935357,1712643039215,-500.0,0.00035616,2]
[321935359,1712643039224,-1169.73,0.00035616,2]
[321935361,1712643039234,-502.82,0.00035616,2]
[321935363,1712643039243,-500.0,0.00035616,2]
[321935365,1712643039252,-500.0,0.00035616,2]
[321935367,1712643039262,-500.0,0.00035616,2]
[321935369,1712643039272,-969.13,0.00035616,2]
[321935372,1712643039282,-500.0,0.00035616,2]
[321935373,1712643039291,-500.0,0.00035616,2]
[321935381,1712643039351,-500.0,0.00035616,2]
[321935383,1712643039360,-500.0,0.00035616,2]
[321935385,1712643039370,-500.0,0.00035616,2]
[321935387,1712643039379,-947.68,0.00035616,2]
[321935389,1712643039388,-500.0,0.00035616,2]
[321935391,1712643039397,-981.22,0.00035616,2]
[321935393,1712643039406,-500.0,0.00035616,2]
[321935395,1712643039415,-500.0,0.00035616,2]
[321935397,1712643039424,-523.23,0.00035616,2]
[321935399,1712643039433,-500.0,0.00035616,2]
[321935401,1712643039442,-500.0,0.00035616,2]